fUSD/lending_fUSD_20240924
["ID","MTS","AMOUNT","RATE_DAILY","PERIOD"]
[339054597,1727183432131,-1728.77,0.0001178,2]
[339054598,1727183432141,-7235.86,0.0001178,2]
[339054599,1727183432150,-156.36,0.00011797,2]
[339054600,1727183432161,-2935.89,0.00011797,2]
[339054601,1727183432170,-150.0,0.0001185,2]
[339054602,1727183432179,-499.99,0.00011871,2]
[339054603,1727183432188,-150.0,0.00011873,2]
[339054604,1727183432197,-177.61,0.00011917,2]
[339054605,1727183432206,-150.0,0.00011947,2]
[339054606,1727183432217,-150.0,0.00011966,2]
[339054608,1727183432227,-150.0,0.00012012,2]
[339054609,1727183432237,-150.0,0.00012059,2]
[339054610,1727183432246,-150.0,0.00012121,2]
[339054611,1727183432256,-150.0,0.00012151,2]
[339054612,1727183432266,-300.0,0.00012169,2]
[339054613,1727183432276,-150.0,0.00012175,2]
[339054614,1727183432285,-428.31,0.00012192,2]
[339054615,1727183432296,-150.0,0.00012192,2]
[339054616,1727183432305,-428.31,0.00012192,2]
[339054617,1727183432315,-150.0,0.00012192,2]
[339054618,1727183432324,-428.31,0.00012192,2]
[339054619,1727183432333,-150.0,0.00012192,2]
[339054620,1727183432343,-428.31,0.00012192,2]
[339054621,1727183432352,-150.0,0.00012192,2]
[339054622,1727183432361,-150.0,0.00012207,2]
[339054623,1727183432371,-150.0,0.00012244,2]
[339054624,1727183432381,-2172.60623652,0.00012269,2]
[339054625,1727183432390,-150.0,0.00012337,2]
[339054626,1727183432400,-150.0,0.00012337,2]
[339054627,1727183432410,-150.0,0.0001243,2]
[339054628,1727183432419,-195.65,0.00012445,2]
[339054629,1727183432628,-2500.0,0.0001246,2]
[339054630,1727183432639,-2500.0,0.0001246,2]
[339054631,1727183432649,-150.0,0.00012467,2]
[339054632,1727183432658,-2520.97172484,0.00012469,2]
[339054633,1727183432667,-177.61,0.00012469,2]
[339054634,1727183432677,-152.33440951,0.00012479,2]
[339054635,1727183432686,-252.4516,0.00012479,2]
[339054636,1727183432696,-1723.6356,0.00012479,2]
[339054637,1727183432705,-34113.15539505,0.00012479,2]
[339054638,1727183432751,-807.52,0.00012479,2]
[339054639,1727183432762,-669.4740111,0.00012479,2]
[339054640,1727183432774,-747.52539385,0.00012479,2]
[339054641,1727183432783,-162.4233,0.00012479,2]
[339054642,1727183432793,-1990.05130615,0.00012479,2]
[339054643,1727183432804,-509.94869385,0.00012479,2]
[339054644,1727183432814,-396.0844,0.00012479,2]
[339054645,1727183432823,-150.0,0.00012499,2]
[339054646,1727183432832,-144.76501695,0.00012523,2]
[339054647,1727183432843,-5.23498305,0.00012523,2]
[339054648,1727183432852,-150.0,0.00012553,2]
[339054649,1727183432862,-140.00707695,0.00012569,2]
[339054650,1727183432874,-37.60292305,0.00012569,2]
[339054651,1727183432886,-265.84275505,0.00012579,2]
[339054652,1727183432899,-8250.57544495,0.00012579,2]
[339054653,1727183432907,-4725.42455505,0.00012579,2]
[339054655,1727183438061,-376.172987,0.00012579,2]
[339054656,1727183438073,-15757.94916,0.00012579,2]
[339054657,1727183438223,-8017.21207,0.00012579,2]
[339054658,1727183438280,-1173.98706814,0.00012579,2]
[339054659,1727183438291,-2065.88764727,0.00012579,2]
[339054784,1727183439967,-896.88949791,0.00012579,2]
[339054786,1727183439981,-662.7731046,0.00012579,2]
[339054788,1727183439993,-77910.19379907,0.00012579,2]
[339055059,1727183443254,-10457.75611096,0.00012579,2]
[339055061,1727183443263,-213.1901,0.00012579,2]
[339055063,1727183443273,-2303.0118,0.00012579,2]
[339055064,1727183443282,-40008.2922,0.00012579,2]
[339055066,1727183443292,-420.0,0.00012609,2]
[339055068,1727183443302,-205.07,0.00012612,2]
[339055070,1727183443311,-150.0,0.00012615,2]
[339055072,1727183443321,-150.0,0.00012662,2]
[339055074,1727183443332,-167.95739396,0.00012676,2]
[339055075,1727183443341,-150.0,0.00012708,2]
[339055077,1727183443351,-150.0,0.00012724,2]
[339055079,1727183443360,-150.0,0.00012727,2]
[339055081,1727183443370,-150.0,0.00012729,2]
[339055083,1727183443379,-150.0,0.00012737,2]
[339055085,1727183443390,-1149.17342963,0.00012737,2]
[339055087,1727183443399,-1069.73703841,0.00012737,2]
[339055089,1727183443409,-1072.69052683,0.00012737,2]
[339055091,1727183443420,-150.0,0.00012743,2]
[339055093,1727183443430,-5867.0,0.00012743,2]
[339055095,1727183443439,-150.0,0.00012743,2]
[339055097,1727183443449,-177.662,0.00012743,2]
[339055099,1727183443458,-150.0,0.00012744,2]
[339055101,1727183443469,-167.95739396,0.00012751,2]
[339055103,1727183443478,-229.887,0.00012752,2]
[339055105,1727183443490,-9993.92781555,0.00012776,2]
[339055381,1727183446426,-200.0,0.00011896,2]
[339055383,1727183446436,-1120.48470199,0.00012776,2]
[339055431,1727183446886,-2286.41270446,0.00012776,2]
[339055433,1727183446897,-458.52,0.00012776,2]
[339055436,1727183446911,-5555.589,0.00012776,2]
[339057850,1727183474952,178.52,0.00010959,2]
[339057851,1727183689560,753.73,0.00010959,2]
[339057852,1727183860923,590.87,9.966e-05,2]
[339057853,1727183868099,504.23,0.00011,5]
[339057855,1727184125590,152.43,0.00010959,2]
[339057856,1727184325251,972.65767204,0.000108,2]
[339057858,1727184329121,579.94515437,0.000101,2]
[339057859,1727184355522,1338.44340786,6.94e-05,2]
[339057887,1727184475660,833.94057283,0.0001,2]
[339057888,1727184506724,10000.0,0.000125,14]
[339057889,1727184511375,1020.31440283,0.00010998,2]
[339057890,1727184512965,-205.0,0.00011166,2]
[339057891,1727184512990,-500.93,0.00011661,2]
[339057892,1727184513010,-150.0,0.00011688,2]
[339057893,1727184513031,-150.0,0.00011688,2]
[339057894,1727184513052,-284.39,0.00011688,2]
[339057895,1727184513072,-150.0,0.00011688,2]
[339057896,1727184513094,-2699.68,0.00011828,2]
[339057897,1727184515773,2000.0,0.000125,14]
[339057901,1727184520949,42043.966595,0.0001,2]
[339057907,1727184573781,635.79,9.817e-05,2]
[339057909,1727184605247,190.88,9.589e-05,2]
[339057923,1727184632419,-184.5,0.00011646,2]
[339057924,1727184632429,-619.94,0.00011665,2]
[339057925,1727184632439,-184.5,0.00011818,2]
[339057926,1727184632449,-184.5,0.00011818,2]
[339057927,1727184632458,-184.5,0.00011818,2]
[339057928,1727184632468,-184.5,0.00011818,2]
[339057929,1727184632478,-184.5,0.00011818,2]
[339057930,1727184632488,-184.5,0.00011818,2]
[339057931,1727184632497,-124.922,0.00011818,2]
[339057932,1727184632509,-59.578,0.00011818,2]
[339057933,1727184632519,-184.5,0.00011818,2]
[339057934,1727184632529,-6266.820581,0.00011828,2]
[339057935,1727184632541,-2251.42259718,0.00011828,2]
[339057936,1727184632553,-12682.07682182,0.00011828,2]
[339057937,1727184632567,-184.5,0.00011848,2]
[339057938,1727184632584,-250.0,0.0001185,2]
[339057939,1727184632593,-500.0,0.00011855,2]
[339057940,1727184632603,-1000.0,0.00011858,2]
[339057941,1727184632612,-200.0,0.00011859,2]
[339057942,1727184632622,-384.68,0.00011872,2]
[339057943,1727184632632,-546.76,0.00011872,2]
[339057944,1727184632641,-472.65390754,0.00011872,2]
[339057945,1727184632653,-27.33609246,0.00011872,2]
[339057946,1727184632663,-174.43,0.00011886,2]
[339057947,1727184632672,-122.46822944,0.00012081,2]
[339057949,1727184636884,1050.0,0.00011,2]
[339057959,1727184638367,-477.10943601,0.00012081,2]
[339057960,1727184638443,-36.21233455,0.00012081,2]
[339057961,1727184638452,-150.0,0.00012121,2]
[339057962,1727184638461,-341.03503576,0.0001235,2]
[339057963,1727184638470,-290.99472818,0.000125,2]
[339057964,1727184638480,-260.75790151,0.000125,14]
[339057976,1727184640205,-7756.60209849,0.000125,14]
[339057977,1727184640215,-150.0,0.00012553,2]
[339057978,1727184640224,-150.0,0.0001258,2]
[339057979,1727184640234,-1081.0,0.0001258,2]
[339057980,1727184640243,-1720.0,0.000126,2]
[339057981,1727184640253,-152.33440951,0.00012682,2]
[339057982,1727184640263,-1549.0,0.000127,2]
[339057983,1727184640273,-150.0,0.00012762,2]
[339057984,1727184640283,-150.0,0.00012764,2]
[339057985,1727184640292,-369.39451203,0.0001277,2]
[339057986,1727184640302,-488.1035,0.0001277,2]
[339057987,1727184640312,-150.0,0.00012773,2]
[339057988,1727184640327,-214.3555,0.00012776,2]
[339057989,1727184640336,-167.95739396,0.00012776,2]
[339057990,1727184640346,-75241.05584255,0.0001278,2]
[339057991,1727184640368,-1279.32942339,0.0001278,2]
[339057992,1727184640380,-2616.72566332,0.0001278,2]
[339057993,1727184640391,-618.73938116,0.0001278,2]
[339057994,1727184640403,-1384.884175,0.0001278,2]
[339057995,1727184640415,-548.20526165,0.0001278,2]
[339057997,1727184640432,-580.32061872,0.0001278,2]
[339057999,1727184640443,-369.84076971,0.0001278,2]
[339058001,1727184640454,-695.95800116,0.0001278,2]
[339058004,1727184640466,-373.54171153,0.0001278,2]
[339058006,1727184640477,-2495.58714316,0.0001278,2]
[339058008,1727184640489,-1928.78975781,0.0001278,2]
[339058011,1727184640500,-261.5074128,0.0001278,2]
[339058165,1727184646294,-6357.8,0.0001278,2]
[339058167,1727184679845,154.65,0.00010959,2]
[339058168,1727185032226,503.08552116,0.00012876,30]
[339058169,1727185138460,190.88,9.589e-05,2]
[339058170,1727185187926,593.04,9.887e-05,2]
[339058388,1727185474279,220.49,0.00022,120]
[339058389,1727185484972,220.49,0.00022,120]
[339058390,1727185501770,220.49,0.00022,120]
[339058391,1727185512378,220.48,0.00022,120]
[339058419,1727185741392,150.0,0.00022,120]
[339058420,1727185744166,190.88,9.589e-05,2]
[339058453,1727185832466,-150.0,0.00011589,2]
[339058454,1727185832476,-150.0,0.00011589,2]
[339058455,1727185832485,-65.6908818,0.00011748,2]
[339058456,1727185832529,-1206.9091182,0.00011748,2]
[339058457,1727185832539,-250.0,0.00011748,2]
[339058458,1727185832548,-153.8,0.00011775,2]
[339058459,1727185832557,-564.56,0.00011776,2]
[339058460,1727185832567,-250.0,0.00011778,2]
[339058461,1727185832577,-1069.89620268,0.00011778,2]
[339058462,1727185832589,-0.28379732,0.00011778,2]
[339058463,1727185832598,-388.75,0.0001178,2]
[339058464,1727185832608,-949.85,0.0001178,2]
[339058465,1727185832617,-23900.0,0.0001179,2]
[339058466,1727185832626,-1000.0,0.00011812,2]
[339058467,1727185832635,-313.42,0.00011859,2]
[339058468,1727185832645,-499.99,0.00012151,2]
[339058469,1727185832654,-593.04,0.00012151,2]
[339058470,1727185832664,-422.08681491,0.00012545,2]
[339058471,1727185832674,-500.0,0.00012698,2]
[339058472,1727185832684,-167.95739396,0.00012698,2]
[339058473,1727185832694,-369.39451203,0.00012698,2]
[339058474,1727185832703,-5118.4206,0.00012698,2]
[339058475,1727185832713,-900.8631,0.00012698,2]
[339058476,1727185832723,-2442.7551,0.00012698,2]
[339058477,1727185832732,-422.91,0.000127,2]
[339058478,1727185832741,-150.0,0.000127,2]
[339058479,1727185832751,-301.73,0.000127,2]
[339058480,1727185832765,-151.33,0.000127,2]
[339058481,1727185832774,-361.47,0.000127,2]
[339058482,1727185832784,-753.64,0.000127,2]
[339058483,1727185832793,-150.0,0.000127,2]
[339058484,1727185832803,-150.0,0.000127,2]
[339058485,1727185832813,-428.31,0.000127,2]
[339058486,1727185832823,-422.91,0.000127,2]
[339058487,1727185832832,-428.31,0.000127,2]
[339058488,1727185832841,-150.0,0.000127,2]
[339058489,1727185832852,-150.0,0.000127,2]
[339058490,1727185832861,-422.91,0.000127,2]
[339058491,1727185832871,-753.64,0.000127,2]
[339058492,1727185832880,-428.31,0.000127,2]
[339058493,1727185832890,-422.91,0.000127,2]
[339058494,1727185832899,-150.0,0.000127,2]
[339058495,1727185832909,-753.64,0.000127,2]
[339058496,1727185832919,-150.0,0.000127,2]
[339058497,1727185832928,-422.91,0.000127,2]
[339058498,1727185832937,-753.64,0.000127,2]
[339058499,1727185832946,-150.0,0.000127,2]
[339058500,1727185832956,-428.31,0.000127,2]
[339058501,1727185832966,-150.0,0.000127,2]
[339058502,1727185832975,-150.0,0.000127,2]
[339058503,1727185832985,-753.64,0.000127,2]
[339058504,1727185832995,-301.21,0.000127,2]
[339058505,1727185833006,-428.31,0.000127,2]
[339058506,1727185833023,-422.91,0.000127,2]
[339058507,1727185833032,-150.0,0.000127,2]
[339058508,1727185833043,-428.31,0.000127,2]
[339058509,1727185833053,-422.91,0.000127,2]
[339058510,1727185833063,-753.64,0.000127,2]
[339058511,1727185833073,-428.31,0.000127,2]
[339058512,1727185833083,-422.91,0.000127,2]
[339058513,1727185833093,-753.64,0.000127,2]
[339058514,1727185833103,-150.0,0.000127,2]
[339058515,1727185833113,-150.0,0.000127,2]
[339058516,1727185833123,-422.91,0.000127,2]
[339058517,1727185833133,-753.64,0.000127,2]
[339058518,1727185833143,-428.31,0.000127,2]
[339058519,1727185833153,-150.0,0.00012774,2]
[339058520,1727185833164,-224.05243676,0.00012777,2]
[339058521,1727185833174,-58547.48314753,0.0001278,2]
[339058522,1727185833186,-74370.00000227,0.0001278,2]
[339058523,1727185833198,-100833.11223943,0.0001278,2]
[339058524,1727185833207,-73170.98426056,0.0001278,2]
[339058525,1727185833219,-1298.31986083,0.0001278,2]
[339058526,1727185833235,-2416.02393351,0.0001278,2]
[339058527,1727185838635,-3163.29177813,0.0001278,2]
[339058528,1727185838646,-15048.54000001,0.0001278,2]
[339058529,1727185838697,-11092.6700266,0.0001278,2]
[339058530,1727185838709,-25151.29898074,0.0001278,2]
[339058531,1727185838720,-1657.36715009,0.0001278,2]
[339058532,1727185838730,-349.49784991,0.0001278,2]
[339058533,1727185838819,-1233.64916876,0.0001278,2]
[339058534,1727185838831,-416.85298133,0.0001278,2]
[339058546,1727185839041,-200.0,0.0001278,2]
[339058549,1727185839051,-150.0,0.0001278,2]
[339058551,1727185839061,-502.0,0.0001278,3]
[339058553,1727185839070,-222.0,0.00012786,2]
[339058555,1727185839080,-3509.14701867,0.00012798,2]
[339058557,1727185839091,-1710.33992832,0.00012798,2]
[339058671,1727185840312,-319.22,0.00012798,2]
[339058680,1727185840395,-53108.54465647,0.00012798,2]
[339058683,1727185840406,-224.05243675,0.00012799,2]
[339058685,1727185840416,-1001.32,0.000128,2]
[339058687,1727185840426,-317.14,0.000128,2]
[339058689,1727185840436,-1000.0,0.000128,2]
[339058691,1727185840445,-1000.0,0.000128,3]
[339058692,1727185840454,-171.08,0.000128,2]
[339058694,1727185840463,-178.67563765,0.000128,2]
[339058696,1727185840472,-178.67563765,0.000128,2]
[339058698,1727185840481,-179.17,0.000128,2]
[339058700,1727185840491,-222.16230457,0.000128,2]
[339058702,1727185840500,-519.187,0.00012802,2]
[339058705,1727185840512,-173.108,0.00012802,2]
[339058706,1727185840521,-333.0,0.00012838,2]
[339058708,1727185840530,-150.15,0.0001286,2]
[339058711,1727185840539,-150.15,0.0001286,2]
[339058713,1727185840549,-150.15,0.00012866,2]
[339058715,1727185840558,-150.15,0.00012866,2]
[339058716,1727185840567,-113729.35251812,0.0001287,2]
[339058718,1727185840576,-150.39012312,0.00012873,2]
[339058720,1727185840585,-353.6277392,0.00012873,2]
[339058722,1727185840595,-515.6669376,0.00012873,2]
[339058724,1727185840603,-500.0,0.00012873,2]
[339058726,1727185840613,-500.0,0.00012875,2]
[339058728,1727185840622,-500.0,0.00012875,2]
[339058730,1727185840631,-525.0,0.00012875,2]
[339058732,1727185840639,-500.0,0.00012875,2]
[339058734,1727185840649,-500.0,0.00012876,2]
[339058736,1727185840657,-500.0,0.00012876,2]
[339058738,1727185840666,-500.0,0.00012876,2]
[339058740,1727185840675,-500.0,0.00012876,2]
[339058742,1727185840684,-500.0,0.00012876,2]
[339058744,1727185840693,-523.89,0.00012876,2]
[339058746,1727185840702,-1999.83,0.00012876,2]
[339058748,1727185840711,-500.0,0.00012876,2]
[339058750,1727185840720,-500.0,0.00012876,2]
[339058752,1727185840729,-513.98893278,0.00012876,2]
[339058754,1727185840739,-502.76103073,0.00012876,2]
[339058756,1727185840749,-505.25782974,0.00012876,2]
[339058759,1727185840758,-500.0,0.00012876,2]
[339058761,1727185840769,-500.0,0.00012876,2]
[339058762,1727185840779,-500.73111642,0.00012876,2]
[339058764,1727185840788,-501.15,0.00012876,2]
[339058767,1727185840798,-564.67,0.00012876,2]
[339058769,1727185840807,-500.0,0.00012876,2]
[339058770,1727185840816,-500.0,0.00012876,2]
[339058773,1727185840826,-500.0,0.00012876,2]
[339058775,1727185840835,-500.0,0.00012876,2]
[339058777,1727185840844,-500.0,0.00012876,2]
[339058779,1727185840854,-448.52514431,0.00012876,2]
[339058781,1727185840864,-500.0,0.00012876,2]
[339058783,1727185840874,-500.0,0.00012876,2]
[339058785,1727185840883,-500.0,0.00012876,2]
[339058787,1727185840892,-500.0,0.00012876,2]
[339058789,1727185840901,-500.0,0.00012876,2]
[339058791,1727185840910,-172.1688276,0.00012876,2]
[339058793,1727185840920,-330.399996,0.00012876,2]
[339058795,1727185840929,-500.0,0.00012876,2]
[339058797,1727185840939,-500.0,0.00012876,2]
[339058799,1727185840948,-500.0,0.00012876,2]
[339058801,1727185840957,-500.0,0.00012876,2]
[339058803,1727185840966,-855.26,0.00012876,2]
[339058805,1727185840975,-500.0,0.00012876,2]
[339058807,1727185840985,-595.57940839,0.00012876,2]
[339058809,1727185840994,-500.0,0.00012876,2]
[339058811,1727185841003,-500.0,0.00012876,2]
[339058813,1727185841012,-150.0,0.00012876,2]
[339058815,1727185841021,-150.0,0.00012876,2]
[339058817,1727185841031,-500.0,0.00012876,2]
[339058819,1727185841040,-500.0,0.00012876,2]
[339058821,1727185841050,-500.0,0.00012876,2]
[339058823,1727185841059,-500.0,0.00012876,2]
[339058825,1727185841068,-201.51771014,0.00012876,2]
[339058827,1727185841077,-500.0,0.00012876,2]
[339058829,1727185841086,-500.0,0.00012876,2]
[339058830,1727185841095,-500.0,0.00012876,2]
[339058833,1727185841105,-500.0,0.00012876,2]
[339058835,1727185841114,-500.0,0.00012876,2]
[339058837,1727185841123,-500.0,0.00012876,2]
[339058839,1727185841132,-500.0,0.00012876,2]
[339058841,1727185841141,-500.0,0.00012876,2]
[339058843,1727185841151,-500.0,0.00012876,2]
[339058845,1727185841160,-500.0,0.00012876,2]
[339058846,1727185841169,-500.0,0.00012876,2]
[339058848,1727185841178,-500.0,0.00012876,2]
[339058850,1727185841187,-500.0,0.00012876,2]
[339058852,1727185841197,-500.0,0.00012876,2]
[339058854,1727185841206,-500.0,0.00012876,2]
[339058857,1727185841215,-500.0,0.00012876,2]
[339058858,1727185841224,-858.01,0.00012876,2]
[339058860,1727185841234,-500.0,0.00012876,2]
[339058862,1727185841243,-500.0,0.00012876,2]
[339058864,1727185841253,-500.0,0.00012876,2]
[339058866,1727185841264,-500.0,0.00012876,2]
[339058868,1727185841273,-500.0,0.00012876,2]
[339058870,1727185841283,-500.0,0.00012876,2]
[339058872,1727185841292,-500.0,0.00012876,2]
[339058874,1727185841301,-500.0,0.00012876,2]
[339058876,1727185841310,-500.0,0.00012876,2]
[339058878,1727185841320,-500.0,0.00012876,2]
[339058880,1727185841329,-500.0,0.00012876,2]
[339058881,1727185841339,-500.0,0.00012876,2]
[339058883,1727185841353,-500.0,0.00012876,2]
[339058885,1727185841362,-500.0,0.00012876,2]
[339058887,1727185841372,-500.0,0.00012876,2]
[339058889,1727185841382,-500.0,0.00012876,2]
[339058891,1727185841391,-558.61,0.00012876,2]
[339058893,1727185841400,-500.0,0.00012876,2]
[339058895,1727185841409,-500.0,0.00012876,2]
[339058897,1727185841420,-500.0,0.00012876,2]
[339058899,1727185841428,-500.0,0.00012876,2]
[339058901,1727185841437,-632.12883782,0.00012876,2]
[339058903,1727185841446,-500.0,0.00012876,2]
[339058905,1727185841455,-500.0,0.00012876,2]
[339058907,1727185841465,-888.76,0.00012876,2]
[339058909,1727185841474,-888.76,0.00012876,2]
[339058911,1727185841483,-500.0,0.00012876,2]
[339058913,1727185841492,-500.0,0.00012876,2]
[339058915,1727185841501,-500.0,0.00012876,7]
[339058916,1727185841511,-500.0,0.00012876,2]
[339058918,1727185841520,-500.0,0.00012876,2]
[339058920,1727185841529,-734.57,0.00012876,2]
[339058922,1727185841538,-500.0,0.00012876,2]
[339058925,1727185841547,-500.0,0.00012876,2]
[339058926,1727185841556,-500.0,0.00012876,2]
[339058929,1727185841565,-500.0,0.00012876,2]
[339058931,1727185841575,-598.39365001,0.00012876,2]
[339058932,1727185841584,-1185.06,0.00012876,2]
[339058934,1727185841593,-500.0,0.00012876,2]
[339058936,1727185841602,-979.12,0.00012876,2]
[339058938,1727185841611,-979.12,0.00012876,2]
[339058940,1727185841621,-500.0,0.00012876,2]
[339058942,1727185841630,-500.0,0.00012876,2]
[339058944,1727185841639,-500.0,0.00012876,2]
[339058946,1727185841649,-500.0,0.00012876,2]
[339058947,1727185841658,-500.0,0.00012876,2]
[339058948,1727185841667,-500.0,0.00012876,2]
[339058949,1727185841676,-500.0,0.00012876,2]
[339058950,1727185841685,-500.0,0.00012876,2]
[339058951,1727185841694,-500.0,0.00012876,2]
[339058952,1727185841703,-500.0,0.00012876,2]
[339058953,1727185841712,-500.0,0.00012876,2]
[339058954,1727185841722,-500.0,0.00012876,2]
[339058955,1727185841731,-500.0,0.00012876,2]
[339058956,1727185841739,-500.0,0.00012876,2]
[339058957,1727185841748,-500.0,0.00012876,2]
[339058959,1727185841757,-500.0,0.00012876,2]
[339058961,1727185841767,-500.0,0.00012876,2]
[339058963,1727185841776,-500.0,0.00012876,2]
[339058964,1727185841786,-500.0,0.00012876,2]
[339058966,1727185841795,-500.0,0.00012876,2]
[339058968,1727185841804,-500.0,0.00012876,2]
[339058970,1727185841813,-500.0,0.00012876,2]
[339058973,1727185841823,-500.0,0.00012876,2]
[339058975,1727185841832,-621.015333,0.00012876,2]
[339058977,1727185841841,-500.0,0.00012876,2]
[339058978,1727185841850,-500.0,0.00012876,2]
[339058981,1727185841859,-500.0,0.00012876,2]
[339058982,1727185841868,-500.0,0.00012876,2]
[339058985,1727185841878,-6512.78,0.00012876,2]
[339058986,1727185841887,-6512.78,0.00012876,2]
[339058988,1727185841897,-500.0,0.00012876,2]
[339058990,1727185841906,-537.4,0.00012876,2]
[339058992,1727185841915,-537.4,0.00012876,2]
[339058994,1727185841924,-500.0,0.00012876,2]
[339058996,1727185841933,-901.6,0.00012876,2]
[339058998,1727185841942,-901.6,0.00012876,2]
[339059000,1727185841952,-500.0,0.00012876,2]
[339059002,1727185841961,-500.0,0.00012876,2]
[339059005,1727185841972,-500.0,0.00012876,2]
[339059007,1727185841981,-500.0,0.00012876,2]
[339059009,1727185841990,-501.89,0.00012876,2]
[339059011,1727185842000,-501.89,0.00012876,2]
[339059013,1727185842009,-520.34103119,0.00012876,2]
[339059014,1727185842020,-500.0,0.00012876,2]
[339059016,1727185842029,-500.0,0.00012876,2]
[339059019,1727185842038,-500.0,0.00012876,2]
[339059021,1727185842048,-500.0,0.00012876,2]
[339059023,1727185842057,-500.0,0.00012876,2]
[339059025,1727185842067,-500.0,0.00012876,2]
[339059027,1727185842077,-500.0,0.00012876,2]
[339059029,1727185842086,-500.0,0.00012876,2]
[339059031,1727185842096,-500.0,0.00012876,2]
[339059033,1727185842106,-500.0,0.00012876,2]
[339059035,1727185842116,-571.43,0.00012876,2]
[339059037,1727185842126,-571.43,0.00012876,2]
[339059039,1727185842136,-1349.77,0.00012876,2]
[339059041,1727185842146,-1349.77,0.00012876,2]
[339059043,1727185842155,-500.0,0.00012876,2]
[339059045,1727185842164,-725.93,0.00012876,2]
[339059047,1727185842173,-725.93,0.00012876,2]
[339059049,1727185842182,-500.0,0.00012876,2]
[339059051,1727185842191,-500.0,0.00012876,2]
[339059053,1727185842200,-500.0,0.00012876,2]
[339059055,1727185842210,-500.0,0.00012876,2]
[339059057,1727185842219,-616.87,0.00012876,2]
[339059059,1727185842229,-616.87,0.00012876,2]
[339059061,1727185842238,-500.0,0.00012876,2]
[339059063,1727185842247,-500.0,0.00012876,2]
[339059065,1727185842257,-500.0,0.00012876,2]
[339059068,1727185842271,-500.0,0.00012876,2]
[339059070,1727185842280,-500.0,0.00012876,2]
[339059072,1727185842289,-500.0,0.00012876,2]
[339059074,1727185842299,-500.0,0.00012876,2]
[339059075,1727185842307,-805.75,0.00012876,2]
[339059077,1727185842317,-805.75,0.00012876,2]
[339059079,1727185842326,-500.0,0.00012876,2]
[339059082,1727185842336,-513.86,0.00012876,2]
[339059084,1727185842348,-414.51031986,0.00012876,2]
[339059085,1727185842357,-513.86,0.00012876,2]
[339059087,1727185842366,-1365.74,0.00012876,2]
[339059089,1727185842375,-1365.74,0.00012876,2]
[339059091,1727185842384,-512.58037478,0.00012876,2]
[339059093,1727185842393,-583.57,0.00012876,2]
[339059095,1727185842402,-583.57,0.00012876,2]
[339059097,1727185842411,-560.16770837,0.00012876,2]
[339059099,1727185842420,-500.0,0.00012876,2]
[339059101,1727185842429,-500.0,0.00012876,2]
[339059103,1727185842439,-500.0,0.00012876,2]
[339059105,1727185842448,-490.75,0.00012876,2]
[339059107,1727185842458,-730.93,0.00012876,2]
[339059109,1727185842467,-730.93,0.00012876,2]
[339059112,1727185842477,-500.0,0.00012876,2]
[339059114,1727185842487,-500.0,0.00012876,2]
[339059115,1727185842497,-500.0,0.00012876,2]